bitfinex/quotes_SOLUSD_20240826
["timestamp","ask_amount","ask_price","bid_price","bid_amount"]
[1724697108049,6.3,158.82,158.81,22.0388]
[1724697108256,6.3,158.82,158.81,67.0388]
[1724697108621,15.444,158.83,158.82,6.2964]
[1724697109353,6.8179034,158.86,158.83,6.2959]
[1724697111167,6.8179034,158.86,158.82,6.2964]
[1724697111474,6.8179034,158.86,158.85,6.2952]
[1724697111649,6.8179034,158.86,158.84,15.7389]
[1724697111968,6.8179034,158.86,158.84,22.0345]
[1724697112469,6.8179034,158.86,158.82,6.2961]
[1724697112765,6.8179034,158.86,158.83,6.2959]
[1724697113957,6.8179034,158.86,158.81,6.2964]
[1724697114364,13.1128034,158.86,158.81,6.2964]
[1724697115282,13.1128034,158.86,158.8,15.7425]
[1724697115283,6.8179034,158.86,158.8,15.7425]
[1724697115442,38.22987285,158.85,158.8,22.0396]
[1724697116048,44.52537285,158.85,158.8,22.0396]
[1724697116350,38.22987285,158.85,158.8,15.7425]
[1724697117353,44.52517285,158.85,158.8,15.7425]
[1724697117974,38.22987285,158.83,158.76,15.746]
[1724697118167,6.6447,158.82,158.73,15.7497]
[1724697118475,6.6447,158.82,158.75,31.4951]
[1724697118657,6.6447,158.82,158.81,6.2968]
[1724697120379,15.3113,158.84,158.83,22.036]
[1724697120675,7.2756034,158.86,158.85,6.2952]
[1724697121249,7.2756034,158.86,158.83,15.74]
[1724697121591,7.2756034,158.86,158.83,22.0359]
[1724697121759,7.2756034,158.86,158.79,15.7436]
[1724697121959,7.2756034,158.86,158.76,2.601]
[1724697121960,7.2756034,158.86,158.8,76.4855]
[1724697122262,7.2756034,158.86,158.85,6.2952]
[1724697124180,7.2756034,158.86,158.84,15.7387]
[1724697124476,7.2756034,158.86,158.84,22.0342]
[1724697124700,7.2756034,158.86,158.84,15.7387]
[1724697125198,7.2756034,158.86,158.83,6.296]
[1724697125575,7.2756034,158.86,158.84,6.2954]
[1724697125787,7.2756034,158.86,158.85,6.2952]
[1724697126195,7.2756034,158.86,158.82,15.7402]
[1724697126501,7.2756034,158.86,158.84,6.2956]
[1724697126701,7.2756034,158.86,158.83,6.2959]
[1724697127275,7.2756034,158.86,158.79,47.2303]
[1724697127471,13.5707034,158.86,158.81,6.2965]
[1724697127677,7.2756034,158.86,158.81,6.2965]
[1724697127890,7.2756034,158.86,158.82,6.2963]
[1724697128808,7.2756034,158.86,158.85,6.2952]
[1724697129007,6.296,158.83,158.77,6.2983]
[1724697129198,16.1277,158.83,158.77,15.746]
[1724697129498,22.4238,158.83,158.77,22.044]
[1724697129713,6.5945,158.82,158.75,6.58385389]
[1724697129880,6.5945,158.82,158.72,15.7502]
[1724697129881,6.2972,158.8,158.72,15.7502]
[1724697130087,6.5945,158.82,158.75,15.7479]
[1724697130088,12.8912,158.82,158.75,15.7479]
[1724697130393,6.5945,158.82,158.78,15.7449]
[1724697130588,6.5945,158.82,158.79,6.2972]
[1724697132083,6.5945,158.82,158.78,15.7449]
[1724697132298,6.5945,158.82,158.79,6.2975]
[1724697132494,6.5945,158.82,158.78,22.0425]
[1724697132701,6.5945,158.82,158.8,6.2971]
[1724697133008,6.5945,158.82,158.78,22.0425]
[1724697133774,6.5945,158.82,158.72,38.08771232]
[1724697133775,6.2973,158.8,158.74,15.7485]
[1724697134308,12.8913,158.82,158.74,15.7485]
[1724697134480,6.5945,158.82,158.77,15.7451]
[1724697134700,6.5945,158.82,158.81,6.2968]
[1724697136796,6.5945,158.82,158.8,6.2971]
[1724697137620,6.5945,158.82,158.81,6.2968]
[1724697138493,6.5945,158.82,158.81,51.2968]
[1724697139102,7.2314034,158.86,158.82,15.741]
[1724697139292,7.2314034,158.86,158.85,6.2952]
[1724697141152,7.2314034,158.86,158.78,6.2976]
[1724697141302,7.2314034,158.86,158.72,31.5008]
[1724697141303,37.72902601,158.86,158.77,15.7457]
[1724697141605,6.2952,158.85,158.79,6.2974]
[1724697141810,7.2314034,158.86,158.73,38.34256367]
[1724697142001,7.2314034,158.86,158.75,46.09383974]
[1724697142319,7.2314034,158.86,158.83,15.7394]
[1724697142905,7.2314034,158.86,158.82,6.2963]
[1724697143593,7.2314034,158.86,158.84,6.2956]
[1724697143806,7.2314034,158.86,158.85,6.2952]
[1724697144003,7.2314034,158.86,158.85,22.0333]
[1724697144299,0.8169034,158.86,158.85,67.0333]
[1724697144499,0.8169034,158.86,158.85,22.0333]
[1724697145809,0.8169034,158.86,158.8,31.4853]
[1724697145810,0.8169034,158.86,158.82,15.7407]
[1724697146137,0.8169034,158.86,158.83,6.2959]
[1724697146808,0.8169034,158.86,158.84,6.2956]
[1724697148844,0.8169034,158.86,158.82,15.7407]
[1724697149001,0.8169034,158.86,158.85,6.2952]
[1724697149632,0.8169034,158.86,158.84,22.0337]
[1724697150005,15.9235,158.84,158.77,15.7452]
[1724697150407,15.9235,158.84,158.79,6.2973]
[1724697150619,15.9235,158.84,158.79,15.7432]
[1724697150843,15.9235,158.84,158.81,6.2965]
[1724697151933,15.9235,158.84,158.79,15.7432]
[1724697152433,15.9235,158.84,158.79,22.0408]
[1724697152831,15.9235,158.84,158.8,6.2971]
[1724697153134,15.9235,158.84,158.74,6.58446339]
[1724697153135,15.9235,158.84,158.76,15.7469]
[1724697153519,15.9235,158.84,158.79,6.2975]
[1724697155235,22.2191,158.84,158.79,6.2975]
[1724697155441,15.9235,158.84,158.75,15.7478]
[1724697155656,15.9235,158.84,158.78,6.298]
[1724697156825,6.3068,158.83,158.77,6.2983]
[1724697158942,6.3068,158.83,158.78,6.2978]
[1724697159240,6.3068,158.83,158.81,6.2966]
[1724697159425,6.3068,158.83,158.75,31.4949]
[1724697159621,6.3068,158.83,158.8,15.7427]
[1724697160426,6.3068,158.83,158.82,6.2964]
[1724697161627,0.8169034,158.86,158.85,6.2952]
[1724697163925,0.8169034,158.86,158.84,6.2955]
[1724697164126,0.8169034,158.86,158.83,15.74]
[1724697164331,0.8169034,158.86,158.85,6.2952]
[1724697169044,31.29540634,158.86,158.79,15.7431]
[1724697169251,31.29540634,158.86,158.81,6.2967]
[1724697169666,31.29540634,158.86,158.79,15.7431]
[1724697169871,31.29540634,158.86,158.81,6.2968]
[1724697170457,0.8169034,158.86,158.79,15.7431]
[1724697170657,7.1117034,158.86,158.8,6.2969]
[1724697171757,7.1117034,158.86,158.81,6.2966]
[1724697173065,6.2953,158.85,158.79,15.7431]
[1724697173978,0.8169034,158.86,158.79,15.7431]
[1724697174185,7.1118034,158.86,158.81,6.2967]
[1724697174564,7.1118034,158.86,158.8,6.2971]
[1724697174772,7.1118034,158.86,158.81,6.2966]
[1724697178199,0.8169034,158.86,158.81,6.2966]
[1724697178406,0.8169034,158.86,158.82,1.25906592]
[1724697178702,0.8169034,158.86,158.83,15.7393]
[1724697179199,0.8169034,158.86,158.84,6.2955]
[1724697181014,0.8169034,158.86,158.85,6.2952]
[1724697181309,0.8169034,158.86,158.83,15.7393]
[1724697181792,6.4553,158.85,158.83,22.035]
[1724697183517,6.4553,158.85,158.84,6.2956]
[1724697185109,6.4553,158.85,158.83,22.035]
[1724697185624,6.4553,158.85,158.84,6.2956]
[1724697186397,0.8169034,158.86,158.85,6.2952]
[1724697189217,0.8169034,158.86,158.85,51.2952]
[1724697193218,3.4e-06,158.86,158.85,81.45127851]
[1724697193434,6.4483,158.97,158.96,6.2908]
[1724697193725,12.7388,158.97,158.89,6.2936]
[1724697194017,30.47850294,158.9,158.75,20.0]
[1724697194221,30.47850294,158.9,158.85,15.7377]
[1724697194400,6.4483,158.89,158.85,15.7377]
[1724697195017,6.4483,158.89,158.84,6.2953]
[1724697195619,30.47850294,158.88,158.82,15.7408]
[1724697195830,30.47850294,158.88,158.8,6.58272736]
[1724697195831,30.47850294,158.86,158.8,12.87982736]
[1724697196009,22.465,158.89,158.77,6.2983]
[1724697196010,30.47850294,158.88,158.77,6.2983]
[1724697196540,6.3164,158.87,158.77,6.2983]
[1724697196703,30.47850294,158.83,158.77,6.2983]
[1724697196905,1.7047088,158.94,158.78,30.47850294]
[1724697197125,30.47850294,158.95,158.88,15.7343]
[1724697197503,30.47850294,158.95,158.89,45.0]
[1724697197905,30.47850294,158.93,158.89,45.0]
[1724697198106,30.47850294,158.93,158.88,15.7343]
[1724697198107,36.77070294,158.93,158.88,15.7343]
[1724697198511,30.47850294,158.93,158.85,22.0328]
[1724697198706,6.3164,158.89,158.79,9.16058505]
[1724697198930,6.3164,158.89,158.84,6.2952]
[1724697199136,6.3164,158.89,158.85,51.2951]
[1724697199339,6.3164,158.89,158.86,1.25874694]
[1724697199745,6.3164,158.89,158.85,6.2951]
[1724697200125,30.47850294,158.86,158.8,15.7422]
[1724697200350,30.47850294,158.86,158.82,6.2964]
[1724697201757,30.47850294,158.84,158.8,22.039]
[1724697202362,36.77340294,158.86,158.81,6.2967]
[1724697202661,6.2944,158.87,158.81,7.55582171]
[1724697203231,6.2949,158.86,158.81,1.25912171]
[1724697203488,6.2949,158.86,158.8,6.2968]
[1724697203629,6.2949,158.86,158.81,46.25912152]
[1724697203835,6.3164,158.89,158.81,62.00042152]
[1724697203836,36.79490294,158.89,158.81,62.00042152]
[1724697204040,6.3164,158.89,158.81,46.25912152]
[1724697204339,6.3164,158.89,158.86,6.2947]
[1724697207473,6.3164,158.89,158.85,6.2951]
[1724697207648,36.79490294,158.89,158.84,22.0344]
[1724697207849,30.47850294,158.87,158.82,6.2961]
[1724697208469,30.47850294,158.87,158.83,7.55488351]
[1724697209749,36.77320294,158.87,158.82,15.7405]
[1724697209964,30.47850294,158.87,158.82,22.0366]
[1724697210851,30.47850294,158.87,158.83,6.2958]
[1724697212066,36.79490294,158.89,158.85,6.2951]
[1724697212250,43.08880294,158.89,158.84,6.2955]
[1724697213466,6.2941,158.88,158.82,22.0365]
[1724697213657,30.47850294,158.87,158.82,22.0365]
[1724697213851,36.77300294,158.87,158.82,22.0365]
[1724697214675,36.77300294,158.87,158.78,38.07257332]
[1724697214676,6.2958,158.84,158.79,22.0409]
[1724697214889,30.47850294,158.85,158.79,15.7436]
[1724697215788,30.47850294,158.85,158.8,1.25929783]
[1724697216477,36.77380294,158.85,158.8,7.55649783]
[1724697217478,6.2957,158.84,158.79,22.0411]
[1724697217688,36.77380294,158.85,158.8,6.2971]
[1724697218071,36.77380294,158.85,158.79,15.7436]
[1724697218072,36.77380294,158.85,158.79,22.0411]
[1724697218257,36.77380294,158.85,158.8,1.25931097]
[1724697218960,30.47850294,158.85,158.81,6.2968]
[1724697219376,36.77380294,158.85,158.8,6.2971]
[1724697220885,30.47850294,158.85,158.8,1.25920931]
[1724697221068,30.47850294,158.85,158.76,8.16310927]
[1724697221272,30.47850294,158.85,158.77,46.25931267]
[1724697221669,30.47850294,158.85,158.81,6.2967]
[1724697223686,36.77380294,158.85,158.8,6.2971]
[1724697224386,6.2957,158.84,158.79,6.2972]
[1724697224800,36.77380294,158.85,158.8,6.2972]
[1724697225809,30.47850294,158.85,158.77,60.7452]
[1724697226038,36.77380294,158.85,158.8,6.2972]
[1724697228080,36.77290294,158.87,158.82,6.2964]
[1724697228283,36.77290294,158.87,158.81,6.2967]
[1724697228597,6.2948,158.86,158.81,6.2967]
[1724697229288,6.2952,158.85,158.8,22.0396]
[1724697229484,6.2032,158.82,158.77,60.7457]
[1724697229682,6.2032,158.82,158.79,15.7432]
[1724697230115,30.47850294,158.81,158.76,15.7466]
[1724697230424,30.47850294,158.81,158.71,6.55958505]
[1724697230425,30.47850294,158.79,158.74,6.2995]
[1724697230725,30.47850294,158.79,158.72,22.33803811]
[1724697230726,36.77640294,158.79,158.73,6.2999]
[1724697230935,36.77690294,158.77,158.72,15.7505]
[1724697231136,30.47850294,158.75,158.7,6.3011]
[1724697231357,36.77770294,158.75,158.7,6.3011]
[1724697231518,36.77770294,158.75,158.69,22.0552]
[1724697231713,6.2996,158.74,158.69,22.0552]
[1724697231953,30.47850294,158.73,158.69,22.0552]
[1724697232824,30.47850294,158.75,158.7,6.3011]
[1724697233413,21.7415,158.78,158.66,31.5124]
[1724697233647,58.51800294,158.78,158.72,6.3003]
[1724697233850,52.22000294,158.78,158.74,6.2996]
[1724697234145,52.22000294,158.78,158.74,6.2993]
[1724697234364,21.7415,158.78,158.73,15.7493]
[1724697234521,21.7415,158.78,158.76,6.2984]
[1724697235448,21.7415,158.78,158.77,6.2984]
[1724697235635,21.9699,158.83,158.81,6.2967]
[1724697235833,21.9699,158.83,158.79,15.7439]
[1724697236151,21.9699,158.83,158.75,31.4955]
[1724697236152,21.9699,158.83,158.82,22.0374]
[1724697236655,21.9699,158.83,158.82,15.741]
[1724697237455,21.9699,158.83,158.79,22.0411]
[1724697237820,21.9699,158.83,158.8,6.2971]
[1724697238023,21.9699,158.83,158.82,22.0374]
[1724697238326,21.9699,158.83,158.78,15.7444]
[1724697238540,21.9699,158.83,158.79,51.2972]
[1724697238840,21.9699,158.83,158.8,6.297]
[1724697239420,21.9699,158.83,158.78,15.7444]
[1724697239421,52.44840294,158.83,158.78,15.7444]
[1724697240354,58.74440294,158.83,158.78,15.7444]
[1724697240558,30.47850294,158.81,158.7,6.309]
[1724697240847,30.47850294,158.79,158.71,1.25969584]
[1724697241144,30.47850294,158.79,158.76,6.2987]
[1724697242341,21.9699,158.83,158.77,15.7458]
[1724697242342,30.47850294,158.81,158.77,15.7458]
[1724697242926,30.47850294,158.79,158.74,22.0482]
[1724697243153,30.47850294,158.79,158.75,6.2991]
[1724697243454,30.47850294,158.77,158.72,6.3]
[1724697243623,30.47850294,158.77,158.73,6.2998]
[1724697245231,30.47850294,158.77,158.74,6.2994]
[1724697245428,30.47850294,158.77,158.75,15.7473]
[1724697245731,30.47850294,158.79,158.77,6.2982]
[1724697245939,30.47850294,158.79,158.76,6.2987]
[1724697247044,30.47850294,158.81,158.76,6.2987]
[1724697247247,30.47850294,158.81,158.78,6.2978]
[1724697247558,30.47850294,158.81,158.77,6.2983]
[1724697248063,30.47850294,158.81,158.78,6.2979]
[1724697248442,30.47850294,158.81,158.76,6.2984]
[1724697248834,30.47850294,158.81,158.77,6.2984]
[1724697249340,28.266,158.83,158.67,7.84044349]
[1724697249341,36.77620294,158.79,158.74,6.2994]
[1724697249542,30.47850294,158.79,158.75,6.2991]
[1724697250162,21.9699,158.83,158.72,30.47850294]
[1724697250351,21.9699,158.83,158.82,15.741]
[1724697250546,21.9699,158.83,158.8,6.2971]
[1724697251047,21.9699,158.83,158.79,15.7437]
[1724697251257,30.47850294,158.82,158.79,15.7437]
[1724697252839,21.9699,158.83,158.8,6.2972]
[1724697253928,21.9699,158.83,158.79,22.0412]
[1724697254946,21.9699,158.83,158.81,6.2966]
[1724697255161,21.9699,158.83,158.8,6.2971]
[1724697255466,21.9699,158.83,158.79,15.7437]
[1724697255669,21.9699,158.83,158.82,6.2964]
[1724697256372,22.6851,158.87,158.85,6.2952]
[1724697256674,6.3028,158.87,158.86,6.2948]
[1724697256847,6.3028,158.87,158.85,15.7374]
[1724697256848,22.4718,158.91,158.88,6.2939]
[1724697257261,15.7276,158.96,158.86,1.25877195]
[1724697257262,6.0895,158.96,158.86,1.25877195]
[1724697257468,6.0895,158.96,158.94,6.2916]
[1724697257774,6.0895,158.96,158.95,6.2912]
[1724697258368,6.0895,158.96,158.94,6.2916]
[1724697258875,6.0895,158.96,158.93,15.7293]
[1724697260177,30.47850294,158.95,158.83,30.47850294]
[1724697260372,30.47850294,158.95,158.91,6.2928]
[1724697261677,6.0895,158.96,158.92,6.2924]
[1724697263607,6.0895,158.96,158.91,15.7314]
[1724697263608,6.0895,158.96,158.93,7.55033767]
[1724697264254,6.0895,158.96,158.93,6.292]
[1724697265476,12.61,159.0,158.95,6.2912]
[1724697266373,23.2782,159.05,158.94,76.4572]
[1724697266580,29.5656,159.05,159.0,15.7231]
[1724697266786,23.2782,159.05,159.01,45.0]
[1724697267162,29.5656,159.05,159.0,15.7231]
[1724697267377,30.47850294,159.04,159.0,15.7231]
[1724697267572,23.2782,159.05,159.0,22.0123]
[1724697267891,23.2782,159.05,159.01,6.2889]
[1724697268962,23.2782,159.05,159.01,7.5464879]
[1724697269494,6.6138,159.05,159.01,51.2889]
[1724697269967,51.84220294,159.09,159.01,51.2889]
[1724697270169,21.3637,159.09,159.01,51.2889]
[1724697271685,51.84220294,159.09,159.01,51.2889]
[1724697272065,51.84220294,159.09,159.01,52.54625879]
[1724697272976,21.3637,159.09,159.01,52.54625879]
[1724697273785,0.8169034,159.33,159.01,52.54625879]
[1724697273786,6.265,159.12,159.01,52.54625879]
[1724697273989,6.265,159.12,159.11,6.2849]
[1724697274180,6.265,159.12,159.08,6.286]
[1724697274379,6.265,159.12,159.07,6.2864]
[1724697274688,30.47850294,159.1,159.06,6.2869]
[1724697275218,30.47850294,159.1,159.05,6.2872]
[1724697275400,30.47850294,159.1,159.03,15.7201]
[1724697275708,30.47850294,159.1,159.04,45.0]
[1724697275884,36.74350294,159.12,159.06,15.7171]
[1724697276085,6.265,159.12,159.08,6.2861]
[1724697276280,6.265,159.12,159.09,6.2857]
[1724697276518,6.265,159.12,159.08,7.54312527]
[1724697277202,36.74350294,159.12,159.06,15.7171]
[1724697277398,36.74350294,159.12,159.04,51.2873]
[1724697277708,6.285,159.11,159.06,6.2869]
[1724697277923,36.74350294,159.12,159.07,51.2863]
[1724697278095,6.265,159.12,159.08,6.2861]
[1724697278408,6.265,159.12,159.07,51.2865]
[1724697279187,6.265,159.12,159.08,6.286]
[1724697279512,6.265,159.12,159.09,1.25695667]
[1724697279891,6.265,159.12,159.08,6.286]
[1724697280094,43.02810294,159.12,159.06,15.717]
[1724697280616,43.02810294,159.12,159.07,7.54346695]
[1724697280815,12.5496,159.12,159.08,46.25698983]
[1724697281129,12.5496,159.12,159.07,6.2863]
[1724697281422,6.265,159.12,159.0,30.47850294]
[1724697281598,36.74350294,159.12,159.01,46.25715146]
[1724697281800,6.2854,159.1,159.05,6.2872]
[1724697282015,36.74350294,159.12,159.06,6.2867]
[1724697282016,6.2849,159.11,159.06,6.2867]
[1724697282194,6.2849,159.11,159.07,1.25711983]
[1724697282396,43.02810294,159.12,159.07,1.25711983]
[1724697283524,43.02810294,159.12,159.07,6.2864]
[1724697284606,6.265,159.12,159.06,15.7167]
[1724697284805,6.265,159.12,159.09,6.2857]
[1724697285327,6.265,159.12,159.08,6.286]
[1724697286409,12.5496,159.12,159.07,51.2865]
[1724697286611,6.285,159.11,159.06,22.0033]
[1724697287019,6.265,159.12,159.03,15.7199]
[1724697287231,6.2854,159.1,159.05,6.2873]
[1724697288017,6.265,159.12,159.03,15.7199]
[1724697288018,6.2859,159.09,159.04,6.2877]
[1724697289442,6.2854,159.1,159.05,6.2872]
[1724697291008,30.47850294,159.1,159.03,22.0077]
[1724697291217,30.47850294,159.1,159.03,15.7199]
[1724697292533,6.2858,159.09,159.04,6.2876]
[1724697293826,6.265,159.12,159.08,6.2857]
[1724697294135,6.265,159.12,159.07,6.2864]
[1724697294334,12.5499,159.12,159.07,6.2864]
[1724697295020,6.285,159.11,159.07,6.2864]
[1724697295221,12.5496,159.12,159.07,6.2864]
[1724697296433,6.265,159.12,159.1,6.2852]
[1724697296634,6.265,159.12,159.03,2.601]
[1724697296937,6.265,159.12,159.03,47.601]
[1724697297125,12.5496,159.12,159.07,22.0023]
[1724697297816,6.285,159.11,159.07,22.0026]
[1724697298544,12.5496,159.12,159.07,22.0026]
[1724697300220,6.265,159.12,159.06,6.2868]
[1724697300422,6.265,159.12,159.04,15.7188]
[1724697300423,6.2856,159.1,159.05,6.2873]
[1724697300655,6.285,159.11,159.06,7.54415168]
[1724697300815,6.285,159.11,159.06,6.2868]
[1724697301019,6.265,159.12,159.06,16.97367213]
[1724697301215,6.265,159.12,159.08,15.7144]
[1724697301534,6.265,159.12,159.08,16.97138726]
[1724697301743,6.265,159.12,159.08,15.7144]
[1724697301920,6.265,159.12,159.1,6.2853]
[1724697302642,6.265,159.12,159.09,6.2856]
[1724697303144,6.2856,159.1,159.05,15.7179]
[1724697303350,30.47850294,159.11,159.04,6.2876]
[1724697303648,6.2861,159.09,159.02,15.7211]
[1724697304143,6.2854,159.1,159.05,6.2872]
[1724697304525,6.2857,159.09,159.04,6.2876]
[1724697306260,6.2857,159.09,159.02,15.7211]
[1724697306261,6.2862,159.08,159.03,6.288]
[1724697306644,16.1041,159.07,159.03,6.288]
[1724697307158,12.8268,159.06,158.99,15.7239]
[1724697307584,6.5398,159.06,158.99,15.7239]
[1724697307736,6.5398,159.06,159.02,6.2885]
[1724697309760,12.8267,159.06,159.01,6.2888]
[1724697309963,6.5398,159.06,159.02,6.2884]
[1724697310187,6.5398,159.06,159.03,1.25755136]
[1724697310476,6.5398,159.06,159.04,6.2874]
[1724697310768,12.8268,159.06,159.01,6.2888]
[1724697311171,6.2877,159.04,159.0,15.7229]
[1724697311677,6.2877,159.04,158.99,6.2896]
[1724697311841,6.2882,159.03,158.98,7.86474627]
[1724697312040,6.2882,159.03,158.98,6.29]
[1724697312491,30.47850294,159.03,158.97,15.7257]
[1724697312669,36.76770294,159.01,158.96,6.2905]
[1724697313378,36.76770294,159.01,158.95,6.309]
[1724697313379,6.2901,158.98,158.95,6.309]
[1724697313586,6.1371,159.0,158.96,22.0171]
[1724697314294,12.4265,159.0,158.96,15.7264]
[1724697315590,12.4264,159.0,158.94,6.2916]
[1724697315773,12.4264,159.0,158.95,6.2911]
[1724697315970,6.1371,159.0,158.96,6.2905]
[1724697316358,6.1371,159.0,158.97,6.2903]
[1724697317897,6.1371,159.0,158.92,6.57193689]
[1724697318184,6.1371,159.0,158.93,45.0]
[1724697318390,6.1371,159.0,158.99,6.2897]
[1724697318597,22.107,159.04,159.02,22.0089]
[1724697319762,22.107,159.04,159.03,6.2881]
[1724697319987,6.2995,159.04,159.03,6.2881]
[1724697320178,6.2995,159.04,159.03,51.2881]
[1724697320997,6.2995,159.04,159.03,6.2881]
[1724697323100,22.1973,159.08,159.04,15.7188]
[1724697323282,22.1973,159.08,158.99,31.4479]
[1724697323283,22.1973,159.08,159.06,6.2868]
[1724697324000,28.4834,159.08,159.03,22.0079]
[1724697324300,22.1973,159.08,159.04,45.0]
[1724697325595,22.1973,159.08,159.05,6.2873]
[1724697325905,22.1973,159.08,159.03,15.7199]
[1724697327414,28.4835,159.08,159.03,22.0077]
[1724697328607,6.2873,159.06,159.0,15.7232]
[1724697328805,22.1973,159.08,159.0,15.7232]
[1724697329993,28.4834,159.08,159.03,6.2881]
[1724697331311,30.47850294,159.06,159.01,6.2885]
[1724697331494,30.47850294,159.06,159.0,22.0124]
[1724697331891,36.76620294,159.04,159.0,15.7232]
[1724697332095,30.47850294,159.04,159.0,22.0124]
[1724697332290,6.2873,159.05,159.0,22.0124]
[1724697333628,36.76550294,159.06,159.01,6.2888]
[1724697333922,6.5001,159.07,159.03,6.2877]
[1724697334097,6.5001,159.07,159.04,15.7188]
[1724697334497,6.5001,159.07,159.06,6.2869]
[1724697336622,6.6441,159.13,159.03,61.91880294]
[1724697336925,6.6441,159.13,159.04,46.57389256]
[1724697337099,43.40670294,159.13,159.07,22.0026]
[1724697337285,43.40670294,159.13,159.08,6.286]
[1724697337723,37.12260294,159.13,159.1,6.2853]
[1724697338098,37.12260294,159.13,159.09,6.2856]
[1724697338309,37.12260294,159.13,159.08,6.2861]
[1724697340411,6.6441,159.13,159.12,6.2845]
[1724697341830,15.5796,159.14,159.08,1.25682719]
[1724697341999,21.749,159.17,159.13,6.2841]
[1724697342625,21.749,159.17,159.14,6.2836]
[1724697343502,21.749,159.17,159.15,6.2831]
[1724697343822,21.749,159.17,159.14,6.2837]
[1724697344203,21.749,159.17,159.12,15.7105]
[1724697344520,21.749,159.17,159.14,6.2835]
[1724697345613,21.749,159.17,159.15,6.2833]
[1724697345811,0.8169034,159.18,159.15,1.25651623]
[1724697346017,0.8169034,159.18,159.17,21.9889]
[1724697346238,0.8169034,159.18,159.17,66.9889]
[1724697347021,0.8169034,159.18,159.17,68.24503135]
[1724697347326,20.0,159.39,159.17,68.24503135]
[1724697347327,6.0407,159.29,159.28,6.2782]
[1724697347825,6.0407,159.29,159.26,15.6973]
[1724697347826,6.0407,159.29,159.27,6.2786]
[1724697348305,6.0407,159.29,159.26,21.9763]
[1724697348716,0.8169034,159.33,159.32,6.2766]
[1724697348922,0.8169034,159.33,159.27,15.6958]
[1724697349226,0.8169034,159.33,159.28,6.2778]
[1724697349227,31.29540634,159.33,159.28,6.2778]
[1724697349409,31.29540634,159.33,159.29,6.2778]
[1724697349612,0.8169034,159.33,159.31,6.2767]
[1724697349802,0.8169034,159.33,159.3,15.693]
[1724697350213,0.8169034,159.33,159.26,15.6966]
[1724697350433,0.8169034,159.33,159.27,45.0]
[1724697350637,0.8169034,159.33,159.29,6.2778]
[1724697350808,0.8169034,159.33,159.3,45.0]
[1724697351012,0.8169034,159.33,159.28,6.2782]
[1724697351209,7.0933034,159.33,159.27,6.2786]
[1724697351409,6.2766,159.32,159.26,21.9755]
[1724697351611,6.2766,159.32,159.1,31.36505203]
[1724697351612,30.47850294,159.32,159.22,15.7007]
[1724697351825,30.47850294,159.3,159.22,15.7007]
[1724697352040,36.75610294,159.3,159.24,6.2798]
[1724697352423,30.47850294,159.28,159.22,21.9812]
[1724697352612,30.47850294,159.28,159.22,15.7007]
[1724697353220,6.2787,159.27,159.22,21.9812]
[1724697353644,16.5085034,159.33,159.22,15.7007]
[1724697353810,6.2782,159.28,159.22,21.9812]
[1724697354014,6.2782,159.28,159.16,3.49387689]
[1724697354015,6.2791,159.26,159.2,6.281]
[1724697354447,16.5085034,159.33,159.16,3.49387689]
[1724697354448,17.3582034,159.33,159.16,24.74981765]
[1724697354654,17.3582034,159.33,159.18,1.25594076]
[1724697354815,6.2767,159.32,159.25,6.279]
[1724697355012,0.8169034,159.33,159.27,15.6965]
[1724697355449,30.47850294,159.28,159.19,8.17405355]
[1724697355655,15.693,159.31,159.16,1.7843]
[1724697355821,30.47850294,159.25,159.18,6.282]
[1724697356015,16.5413,159.32,159.2,6.2813]
[1724697356016,36.75680294,159.28,159.2,6.2813]
[1724697356316,30.47850294,159.28,159.2,6.2813]
[1724697356836,6.3067,159.25,159.17,6.2824]
[1724697358359,6.3067,159.25,159.18,1.25608907]